fUSD/lending_fUSD_20250611
["ID","MTS","AMOUNT","RATE_DAILY","PERIOD"]
[365424440,1749664241260,-751.65,0.00019178,2]
[365424441,1749664241269,-887.68,0.00019178,2]
[365424443,1749664241279,-490.0,0.00019178,2]
[365424445,1749664241289,-490.0,0.00019178,2]
[365424447,1749664241298,-490.0,0.00019178,2]
[365424449,1749664241307,-613.65,0.00019178,2]
[365424451,1749664241316,-508.01,0.00019178,2]
[365424453,1749664241325,-4954.42,0.00019178,2]
[365424455,1749664241334,-1793.01,0.00019178,2]
[365424457,1749664241343,-490.0,0.00019178,2]
[365424459,1749664241353,-490.0,0.00019178,2]
[365424461,1749664241362,-490.0,0.00019178,2]
[365424463,1749664241371,-681.26,0.00019178,2]
[365424465,1749664241381,-706.34,0.00019178,2]
[365424467,1749664241390,-490.0,0.00019178,2]
[365424469,1749664241399,-490.0,0.00019178,2]
[365424471,1749664241408,-490.0,0.00019178,2]
[365424473,1749664241418,-1072.31,0.00019178,2]
[365424475,1749664241427,-209.6,0.00019178,2]
[365424477,1749664241435,-1238.008863,0.00019178,2]
[365424479,1749664241444,-490.0,0.00019178,2]
[365424480,1749664241453,-480.0,0.00019178,2]
[365424483,1749664241463,-490.0,0.00019178,2]
[365424484,1749664241473,-490.0,0.00019178,2]
[365424486,1749664241482,-490.0,0.00019178,2]
[365424488,1749664241492,-490.0,0.00019178,2]
[365424490,1749664241501,-591.66,0.00019178,2]
[365424492,1749664241511,-2882.68,0.00019178,2]
[365424494,1749664241521,-490.0,0.00019178,2]
[365424496,1749664241532,-1211.37,0.00019178,2]
[365424498,1749664241543,-490.0,0.00019178,2]
[365424500,1749664241552,-1592.46,0.00019178,2]
[365424502,1749664241563,-490.0,0.00019178,2]
[365424504,1749664241572,-772.88,0.00019178,2]
[365424506,1749664241581,-490.0,0.00019178,2]
[365424508,1749664241591,-490.0,0.00019178,2]
[365424510,1749664241601,-490.0,0.00019178,2]
[365424512,1749664241610,-628.18,0.00019178,2]
[365424514,1749664241620,-1396.99,0.00019178,2]
[365424516,1749664241630,-1056.26,0.00019178,2]
[365424518,1749664241638,-480.0,0.00019178,2]
[365424520,1749664241647,-824.41,0.00019178,2]
[365424522,1749664241656,-851.75,0.00019178,2]
[365424523,1749664241665,-490.0,0.00019178,2]
[365424524,1749664241674,-1036.29,0.00019178,2]
[365424525,1749664241683,-184.15,0.00019178,2]
[365424526,1749664241692,-490.0,0.00019178,2]
[365424527,1749664241701,-621.51,0.00019178,2]
[365424528,1749664241710,-982.57,0.00019178,2]
[365424529,1749664241719,-490.0,0.00019178,2]
[365424530,1749664241728,-490.0,0.00019178,2]
[365424531,1749664241737,-490.0,0.00019178,2]
[365424532,1749664241748,-490.0,0.00019178,2]
[365424533,1749664241757,-1715.86,0.00019178,2]
[365424534,1749664241766,-253.16728185,0.00019178,2]
[365424535,1749664241775,-490.0,0.00019178,2]
[365424536,1749664241785,-490.0,0.00019178,2]
[365424537,1749664241794,-490.0,0.00019178,2]
[365424538,1749664241803,-490.0,0.00019178,2]
[365424539,1749664241813,-490.0,0.00019178,2]
[365424540,1749664241822,-490.0,0.00019178,2]
[365424541,1749664241832,-689.63,0.00019178,2]
[365424542,1749664241842,-490.0,0.00019178,2]
[365424543,1749664241851,-551.29,0.00019178,2]
[365424544,1749664241860,-490.0,0.00019178,2]
[365424545,1749664241869,-430.24957858,0.00019178,2]
[365424546,1749664241878,-865.21,0.00019178,2]
[365424547,1749664241887,-490.0,0.00019178,2]
[365424548,1749664241896,-1292.01,0.00019178,2]
[365424549,1749664241906,-538.16,0.00019178,2]
[365424550,1749664241915,-490.0,0.00019178,2]
[365424551,1749664241924,-490.0,0.00019178,2]
[365424552,1749664241934,-490.0,0.00019178,2]
[365424553,1749664241943,-490.0,0.00019178,2]
[365424554,1749664241952,-490.0,0.00019178,2]
[365424555,1749664241962,-581.41,0.00019178,2]
[365424556,1749664241971,-538.04,0.00019178,2]
[365424557,1749664241981,-630.31,0.00019178,2]
[365424558,1749664241991,-490.0,0.00019178,2]
[365424559,1749664242000,-619.62,0.00019178,2]
[365424560,1749664242009,-490.0,0.00019178,2]
[365424561,1749664242018,-545.79,0.00019178,2]
[365424562,1749664242028,-5455.39,0.00019178,2]
[365424563,1749664242037,-490.0,0.00019178,2]
[365424564,1749664242046,-578.51,0.00019178,2]
[365424565,1749664242056,-490.0,0.00019178,2]
[365424566,1749664242066,-490.0,0.00019178,2]
[365424567,1749664242075,-869.31,0.00019178,2]
[365424568,1749664242085,-7091.69,0.00019178,2]
[365424569,1749664242094,-1578.74,0.00019178,2]
[365424570,1749664242103,-490.0,0.00019178,2]
[365424571,1749664242113,-490.0,0.00019178,2]
[365424572,1749664242122,-490.0,0.00019178,2]
[365424573,1749664242131,-420.0,0.00019178,2]
[365424574,1749664242141,-178.27584835,0.00019178,2]
[365424575,1749664242151,-490.0,0.00019178,2]
[365424576,1749664242160,-819.06,0.00019178,2]
[365424577,1749664242170,-466.47125475,0.00019178,2]
[365424578,1749664242182,-519.97,0.00019178,2]
[365424579,1749664242191,-490.0,0.00019178,2]
[365424580,1749664242201,-480.0,0.00019178,2]
[365424581,1749664242210,-1328.38,0.00019178,2]
[365424582,1749664242219,-490.0,0.00019178,2]
[365424583,1749664242229,-1017.44,0.00019178,2]
[365424584,1749664242238,-490.0,0.00019178,2]
[365424585,1749664242250,-480.0,0.00019178,2]
[365424586,1749664242260,-490.0,0.00019178,2]
[365424587,1749664242270,-638.23,0.00019178,2]
[365424588,1749664242279,-490.0,0.00019178,2]
[365424589,1749664242289,-490.0,0.00019178,2]
[365424590,1749664242298,-1633.38,0.00019178,2]
[365424591,1749664242308,-490.0,0.00019178,2]
[365424592,1749664242317,-853.47,0.00019178,2]
[365424593,1749664242327,-1459.54,0.00019178,2]
[365424594,1749664242336,-480.0,0.00019178,2]
[365424595,1749664242346,-509.78,0.00019178,2]
[365424596,1749664242355,-1668.79,0.00019178,2]
[365424597,1749664242365,-956.22,0.00019178,2]
[365424598,1749664242374,-563.11,0.00019178,2]
[365424599,1749664242384,-768.89,0.00019178,2]
[365424600,1749664242393,-490.0,0.00019178,2]
[365424601,1749664242403,-556.57,0.00019178,2]
[365424602,1749664242413,-480.0,0.00019178,2]
[365424604,1749664242422,-782.98,0.00019178,2]
[365424605,1749664242431,-490.0,0.00019178,2]
[365424606,1749664242441,-490.0,0.00019178,2]
[365424608,1749664242450,-490.0,0.00019178,2]
[365424609,1749664242460,-490.0,0.00019178,2]
[365424610,1749664242471,-490.0,0.00019178,2]
[365424611,1749664242480,-3243.25,0.00019178,2]
[365424612,1749664242491,-490.0,0.00019178,2]
[365424613,1749664242512,-534.84,0.00019178,2]
[365424614,1749664242534,-490.0,0.00019178,2]
[365424615,1749664242552,-490.0,0.00019178,2]
[365424616,1749664242561,-622.95,0.00019178,2]
[365424617,1749664242570,-490.0,0.00019178,2]
[365424618,1749664242579,-589.7,0.00019178,2]
[365424619,1749664242589,-490.0,0.00019178,2]
[365424622,1749664242598,-836.19,0.00019178,2]
[365424625,1749664242607,-480.0,0.00019178,2]
[365424628,1749664242616,-1251.96,0.00019178,2]
[365424631,1749664242625,-2676.7,0.00019178,2]
[365424633,1749664242635,-779.51,0.00019178,2]
[365424635,1749664242644,-490.0,0.00019178,2]
[365424638,1749664242653,-536.75,0.00019178,2]
[365424641,1749664242663,-490.0,0.00019178,2]
[365424644,1749664242671,-1108.13,0.00019178,2]
[365424647,1749664242681,-480.0,0.00019178,2]
[365424650,1749664242691,-480.0,0.00019178,2]
[365424653,1749664242700,-711.18,0.00019178,2]
[365424656,1749664242709,-490.0,0.00019178,2]
[365424658,1749664242718,-490.0,0.00019178,2]
[365424660,1749664242727,-1699.0,0.00019178,2]
[365424662,1749664242736,-490.0,0.00019178,2]
[365424664,1749664242746,-480.0,0.00019178,2]
[365424667,1749664242755,-490.0,0.00019178,2]
[365424669,1749664242765,-757.06,0.00019178,2]
[365424671,1749664242774,-490.0,0.00019178,2]
[365424673,1749664242783,-480.0,0.00019178,2]
[365424674,1749664242793,-609.19,0.00019178,2]
[365424676,1749664242802,-480.0,0.00019178,2]
[365424677,1749664242811,-490.0,0.00019178,2]
[365424678,1749664242820,-490.0,0.00019178,2]
[365424679,1749664242829,-2133.29,0.00019178,2]
[365424680,1749664242838,-490.0,0.00019178,2]
[365424681,1749664242848,-490.0,0.00019178,2]
[365424682,1749664242857,-490.0,0.00019178,2]
[365424683,1749664242866,-557.38,0.00019178,2]
[365424684,1749664242875,-490.0,0.00019178,2]
[365424685,1749664242884,-490.0,0.00019178,2]
[365424686,1749664242893,-490.0,0.00019178,2]
[365424687,1749664242902,-490.0,0.00019178,2]
[365424688,1749664242911,-490.0,0.00019178,2]
[365424689,1749664242921,-490.0,0.00019178,2]
[365424690,1749664242930,-490.0,0.00019178,2]
[365424691,1749664242938,-490.0,0.00019178,2]
[365424692,1749664242948,-490.0,0.00019178,2]
[365424693,1749664242958,-892.62,0.00019178,2]
[365424694,1749664242967,-490.0,0.00019178,2]
[365424695,1749664242977,-490.0,0.00019178,2]
[365424696,1749664242986,-490.0,0.00019178,2]
[365424697,1749664242996,-538.914135,0.00019178,2]
[365424698,1749664243006,-490.0,0.00019178,2]
[365424699,1749664243015,-631.05,0.00019178,2]
[365424700,1749664243024,-799.7,0.00019178,2]
[365424701,1749664243033,-490.0,0.00019178,2]
[365424702,1749664243042,-1515.41,0.00019178,2]
[365424703,1749664243051,-420.0,0.00019178,2]
[365424704,1749664243060,-616.92,0.00019178,2]
[365424705,1749664243070,-480.0,0.00019178,2]
[365424706,1749664243080,-490.0,0.00019178,2]
[365424707,1749664243089,-490.0,0.00019178,2]
[365424708,1749664243098,-490.0,0.00019178,2]
[365424709,1749664243107,-490.0,0.00019178,2]
[365424710,1749664243116,-854.08,0.00019178,2]
[365424711,1749664243126,-580.0,0.00019178,2]
[365424713,1749664243135,-480.0,0.00019178,2]
[365424715,1749664243145,-490.0,0.00019178,2]
[365424717,1749664243155,-480.0,0.00019178,2]
[365424718,1749664243164,-490.0,0.00019178,2]
[365424719,1749664243174,-420.0,0.00019178,2]
[365424720,1749664243183,-490.0,0.00019178,2]
[365424721,1749664243193,-523.80669177,0.00019178,2]
[365424722,1749664243203,-490.0,0.00019178,2]
[365424723,1749664243212,-490.0,0.00019178,2]
[365424725,1749664243221,-490.0,0.00019178,2]
[365424726,1749664243231,-373.44377422,0.00019178,2]
[365424728,1749664243241,-480.0,0.00019178,2]
[365424729,1749664243250,-151.0,0.00019178,2]
[365424730,1749664243260,-431.0,0.00019178,2]
[365424731,1749664243269,-209.43,0.00019178,2]
[365424732,1749664243279,-541.70927701,0.0001921,2]
[365424733,1749664243288,-1885.3736894,0.00019217,2]
[365424734,1749664243297,-166.56336971,0.00019241,2]
[365424735,1749664243307,-541.70927701,0.00019245,2]
[365424736,1749664243316,-1699.12219315,0.00019261,2]
[365424737,1749664243326,-207.23714623,0.00019261,2]
[365424738,1749664243335,-541.70927701,0.00019279,2]
[365424739,1749664243344,-1000.0,0.000193,2]
[365424740,1749664243354,-250.0,0.00019312,2]
[365424741,1749664243363,-541.70927701,0.00019314,2]
[365424742,1749664243372,-833.29909032,0.00019328,2]
[365424743,1749664243381,-500.0,0.00019341,2]
[365424744,1749664243390,-500.0,0.00019341,2]
[365424745,1749664243400,-1211.37,0.00019341,2]
[365424746,1749664243409,-1633.38,0.00019341,2]
[365424747,1749664243419,-300.66,0.00019342,2]
[365424748,1749664243439,-490.0,0.00019342,2]
[365424749,1749664243449,-490.0,0.00019342,2]
[365424750,1749664243458,-490.0,0.00019342,2]
[365424751,1749664243468,-490.0,0.00019342,2]
[365424752,1749664243477,-382.38519309,0.00019342,2]
[365424753,1749664243487,-490.0,0.00019342,2]
[365424754,1749664243498,-490.0,0.00019342,2]
[365424755,1749664243507,-490.0,0.00019342,2]
[365424756,1749664243518,-435.19530773,0.00019342,2]
[365424757,1749664243531,-490.0,0.00019342,2]
[365424758,1749664243540,-490.0,0.00019342,2]
[365424759,1749664243549,-490.0,0.00019342,2]
[365424760,1749664243559,-490.0,0.00019342,2]
[365424761,1749664243569,-490.0,0.00019342,2]
[365424762,1749664243578,-490.0,0.00019342,2]
[365424763,1749664243588,-490.0,0.00019342,2]
[365424764,1749664243601,-490.0,0.00019342,2]
[365424765,1749664243611,-490.0,0.00019342,2]
[365424766,1749664243621,-490.0,0.00019342,2]
[365424767,1749664243631,-490.0,0.00019342,2]
[365424768,1749664243640,-490.0,0.00019342,2]
[365424769,1749664243650,-490.0,0.00019342,2]
[365424770,1749664243660,-490.0,0.00019342,2]
[365424771,1749664243670,-490.0,0.00019342,2]
[365424772,1749664243680,-490.0,0.00019342,2]
[365424773,1749664243690,-490.0,0.00019342,2]
[365424774,1749664243699,-490.0,0.00019342,2]
[365424775,1749664243710,-490.0,0.00019342,2]
[365424776,1749664243719,-215.88922041,0.00019342,2]
[365424777,1749664243729,-631.07371636,0.00019342,2]
[365424778,1749664243740,-490.0,0.00019342,2]
[365424779,1749664243750,-490.0,0.00019342,2]
[365424780,1749664243760,-490.0,0.00019342,2]
[365424781,1749664243770,-581.23,0.00019342,2]
[365424782,1749664243780,-490.0,0.00019342,2]
[365424783,1749664243790,-490.0,0.00019342,2]
[365424784,1749664243799,-490.0,0.00019342,2]
[365424785,1749664243810,-540.49,0.00019342,2]
[365424786,1749664243819,-490.0,0.00019342,2]
[365424787,1749664243829,-490.0,0.00019342,2]
[365424788,1749664243839,-551.11,0.00019342,2]
[365424789,1749664243849,-490.0,0.00019342,2]
[365424790,1749664243859,-490.0,0.00019342,2]
[365424791,1749664243868,-490.0,0.00019342,2]
[365424792,1749664243878,-490.0,0.00019342,2]
[365424793,1749664243887,-490.0,0.00019342,2]
[365424794,1749664243897,-490.0,0.00019342,2]
[365424795,1749664243907,-490.0,0.00019342,2]
[365424796,1749664243916,-490.0,0.00019342,2]
[365424797,1749664243926,-490.0,0.00019342,2]
[365424798,1749664243936,-490.0,0.00019342,2]
[365424799,1749664243946,-490.0,0.00019342,2]
[365424800,1749664243955,-490.0,0.00019342,2]
[365424801,1749664243965,-490.0,0.00019342,2]
[365424802,1749664243975,-813.83,0.00019342,2]
[365424803,1749664243985,-490.0,0.00019342,2]
[365424804,1749664243996,-490.0,0.00019342,2]
[365424805,1749664244006,-264.75047554,0.00019342,2]
[365424806,1749664244016,-512.56,0.00019342,2]
[365424807,1749664244026,-627.11,0.00019342,2]
[365424808,1749664244035,-490.0,0.00019342,2]
[365424809,1749664244045,-490.0,0.00019342,2]
[365424810,1749664244056,-214.53640492,0.00019342,2]
[365424811,1749664244066,-490.0,0.00019342,2]
[365424812,1749664244076,-490.0,0.00019342,2]
[365424813,1749664244086,-503.81,0.00019342,2]
[365424814,1749664244096,-490.0,0.00019342,2]
[365424815,1749664244106,-490.0,0.00019342,2]
[365424816,1749664244117,-490.0,0.00019342,2]
[365424817,1749664244127,-490.0,0.00019342,2]
[365424818,1749664244138,-490.0,0.00019342,2]
[365424819,1749664244148,-453.61184624,0.00019342,2]
[365424820,1749664244158,-490.0,0.00019342,2]
[365424821,1749664244167,-490.0,0.00019342,2]
[365424822,1749664244177,-490.0,0.00019342,2]
[365424823,1749664244187,-490.0,0.00019342,2]
[365424824,1749664244197,-490.0,0.00019342,2]
[365424825,1749664244207,-490.0,0.00019342,2]
[365424826,1749664244217,-490.0,0.00019342,2]
[365424827,1749664244227,-490.0,0.00019342,2]
[365424828,1749664244236,-531.47,0.00019342,2]
[365424829,1749664244247,-816.42,0.00019342,2]
[365424830,1749664244257,-490.0,0.00019342,2]
[365424831,1749664244267,-306.14,0.00019342,2]
[365424832,1749664244276,-450.0,0.00019342,2]
[365424833,1749664244286,-584.46973362,0.00019342,2]
[365424834,1749664244296,-490.0,0.00019342,2]
[365424835,1749664244305,-490.0,0.00019342,2]
[365424836,1749664244315,-490.0,0.00019342,2]
[365424837,1749664244325,-490.0,0.00019342,2]
[365424838,1749664244335,-490.0,0.00019342,2]
[365424839,1749664244344,-490.0,0.00019342,2]
[365424840,1749664244354,-850.55,0.00019342,2]
[365424841,1749664244364,-490.0,0.00019342,2]
[365424842,1749664244375,-490.0,0.00019342,2]
[365424843,1749664244385,-490.0,0.00019342,2]
[365424844,1749664244395,-490.0,0.00019342,2]
[365424845,1749664244405,-490.0,0.00019342,2]
[365424846,1749664244415,-600.11,0.00019342,2]
[365424847,1749664244424,-666.25,0.00019342,2]
[365424848,1749664244434,-490.0,0.00019342,2]
[365424849,1749664244444,-490.0,0.00019342,2]
[365424850,1749664244453,-490.0,0.00019342,2]
[365424851,1749664244463,-844.13,0.00019342,2]
[365424852,1749664244473,-490.0,0.00019342,2]
[365424853,1749664244483,-596.21,0.00019342,2]
[365424854,1749664244493,-490.0,0.00019342,2]
[365424855,1749664244503,-490.0,0.00019342,2]
[365424856,1749664244513,-192.38314155,0.00019342,2]
[365424857,1749664244525,-490.0,0.00019342,2]
[365424858,1749664244535,-197.98,0.00019342,2]
[365424859,1749664244544,-490.0,0.00019342,2]
[365424860,1749664244554,-490.0,0.00019342,2]
[365424861,1749664244565,-490.0,0.00019342,2]
[365424862,1749664244574,-723.73,0.00019342,2]
[365424863,1749664244584,-490.0,0.00019342,2]
[365424864,1749664244593,-612.74,0.00019342,2]
[365424865,1749664244605,-490.0,0.00019342,2]
[365424866,1749664244616,-488.3990275,0.00019342,2]
[365424867,1749664244625,-493.54,0.00019342,2]
[365424868,1749664244635,-490.0,0.00019342,2]
[365424869,1749664244644,-429.77334097,0.00019342,2]
[365424870,1749664244654,-490.0,0.00019342,2]
[365424871,1749664244663,-490.0,0.00019342,2]
[365424872,1749664244673,-490.0,0.00019342,2]
[365424873,1749664244683,-490.0,0.00019342,2]
[365424874,1749664244694,-490.0,0.00019342,2]
[365424875,1749664244704,-843.72,0.00019342,2]
[365424876,1749664244714,-490.0,0.00019342,2]
[365424877,1749664244723,-532.28,0.00019342,2]
[365424878,1749664244734,-490.0,0.00019342,2]
[365424879,1749664244746,-490.0,0.00019342,2]
[365424880,1749664244756,-666.7,0.00019342,2]
[365424881,1749664244765,-490.0,0.00019342,2]
[365424882,1749664244776,-490.0,0.00019342,2]
[365424883,1749664244786,-490.0,0.00019342,2]
[365424884,1749664244797,-490.0,0.00019342,2]
[365424885,1749664244808,-490.0,0.00019342,2]
[365424886,1749664244819,-490.0,0.00019342,2]
[365424887,1749664244829,-231.24,0.00019342,2]
[365424888,1749664244839,-490.0,0.00019342,2]
[365424889,1749664244849,-697.59,0.00019342,2]
[365424890,1749664244859,-490.0,0.00019342,2]
[365424891,1749664244870,-490.0,0.00019342,2]
[365424892,1749664244880,-502.18,0.00019342,2]
[365424893,1749664244890,-490.0,0.00019342,2]
[365424894,1749664244900,-490.0,0.00019342,2]
[365424895,1749664244910,-499.63,0.00019342,2]
[365424896,1749664244920,-490.0,0.00019342,2]
[365424897,1749664244930,-490.0,0.00019342,2]
[365424898,1749664244940,-490.0,0.00019342,2]
[365424899,1749664244950,-490.0,0.00019342,2]
[365424900,1749664244960,-490.0,0.00019342,2]
[365424901,1749664244970,-506.21,0.00019342,2]
[365424902,1749664244980,-1036.53,0.00019342,2]
[365424903,1749664244990,-490.0,0.00019342,2]
[365424904,1749664245002,-490.0,0.00019342,2]
[365424905,1749664245012,-490.19,0.00019342,2]
[365424906,1749664245022,-490.0,0.00019342,2]
[365424907,1749664245031,-575.78,0.00019342,2]
[365424908,1749664245041,-511.63,0.00019342,2]
[365424909,1749664245051,-490.0,0.00019342,2]
[365424910,1749664245061,-490.0,0.00019342,2]
[365424911,1749664245071,-490.0,0.00019342,2]
[365424912,1749664245081,-490.0,0.00019342,2]
[365424913,1749664245093,-645.12,0.00019342,2]
[365424914,1749664245103,-490.0,0.00019342,2]
[365424915,1749664245113,-737.53,0.00019342,2]
[365424916,1749664245123,-490.0,0.00019342,2]
[365424917,1749664245133,-490.0,0.00019342,2]
[365424918,1749664245144,-818.95,0.00019342,2]
[365424919,1749664245155,-490.0,0.00019342,2]
[365424920,1749664245165,-490.0,0.00019342,2]
[365424921,1749664245176,-490.0,0.00019342,2]
[365424922,1749664245187,-490.0,0.00019342,2]
[365424923,1749664245198,-565.2581775,0.00019342,2]
[365424924,1749664245209,-519.18,0.00019342,2]
[365424925,1749664245219,-182.5,0.00019342,2]
[365424926,1749664245230,-669.15,0.00019342,2]
[365424927,1749664245240,-490.0,0.00019342,2]
[365424928,1749664245256,-250.0,0.00019342,2]
[365424929,1749664245266,-892.72,0.00019342,2]
[365424930,1749664245276,-413.87,0.00019342,2]
[365424931,1749664245287,-744.03,0.00019342,2]
[365424932,1749664245297,-356.52,0.00019342,2]
[365424933,1749664245307,-644.81,0.00019342,2]
[365424934,1749664245323,-490.0,0.00019342,2]
[365424935,1749664245340,-1038.37,0.00019342,2]
[365424936,1749664245364,-496.26,0.00019342,2]
[365424937,1749664245374,-739.69,0.00019342,2]
[365424938,1749664245384,-1766.35,0.00019342,2]
[365424939,1749664245394,-3742.92,0.00019342,2]
[365424940,1749664245404,-490.0,0.00019342,2]
[365424941,1749664245413,-710.43,0.00019342,2]
[365424942,1749664245423,-480.0,0.00019342,2]
[365424943,1749664245433,-627.29,0.00019342,2]
[365424944,1749664245443,-490.0,0.00019342,2]
[365424945,1749664245453,-1941.66,0.00019342,2]
[365424946,1749664245463,-545.28,0.00019342,2]
[365424947,1749664245473,-490.0,0.00019342,2]
[365424948,1749664245483,-490.0,0.00019342,2]
[365424950,1749664245495,-1099.76,0.00019342,2]
[365424951,1749664245505,-480.0,0.00019342,2]
[365424952,1749664245515,-490.0,0.00019342,2]
[365424953,1749664245528,-490.0,0.00019342,2]
[365424954,1749664245539,-2859.5,0.00019342,2]
[365424955,1749664245549,-1000.0,0.00019342,2]
[365424956,1749664245559,-810.9,0.00019342,2]
[365424957,1749664245569,-490.0,0.00019342,2]
[365424958,1749664245579,-591.58,0.00019342,2]
[365424959,1749664245589,-490.0,0.00019342,2]
[365424960,1749664245601,-490.0,0.00019342,2]
[365424961,1749664245611,-490.6,0.00019342,2]
[365424962,1749664245621,-6274.88,0.00019342,2]
[365424963,1749664245637,-490.0,0.00019342,2]
[365424964,1749664245660,-765.17,0.00019342,2]
[365424965,1749664245675,-490.0,0.00019342,2]
[365424966,1749664245691,-490.0,0.00019342,2]
[365424967,1749664245701,-967.2,0.00019342,2]
[365424968,1749664245712,-490.0,0.00019342,2]
[365424969,1749664245722,-2665.06,0.00019342,2]
[365424970,1749664245731,-490.0,0.00019342,2]
[365424971,1749664245741,-583.92,0.00019342,2]
[365424972,1749664245752,-490.0,0.00019342,2]
[365424973,1749664245762,-751.65,0.00019342,2]
[365424974,1749664245772,-887.68,0.00019342,2]
[365424975,1749664245782,-490.0,0.00019342,2]
[365424976,1749664245792,-490.0,0.00019342,2]
[365424977,1749664245802,-490.0,0.00019342,2]
[365424978,1749664245812,-613.65,0.00019342,2]
[365424979,1749664245823,-508.01,0.00019342,2]
[365424980,1749664245833,-4954.42,0.00019342,2]
[365424981,1749664245843,-1793.01,0.00019342,2]
[365424982,1749664245852,-490.0,0.00019342,2]
[365424983,1749664245862,-490.0,0.00019342,2]
[365424984,1749664245872,-384.16533011,0.00019342,2]
[365424985,1749664245882,-681.26,0.00019342,2]
[365424986,1749664245892,-706.34,0.00019342,2]
[365424987,1749664245902,-544.25,0.00019342,2]
[365424988,1749664245912,-490.0,0.00019342,2]
[365424989,1749664245923,-490.0,0.00019342,2]
[365424990,1749664245933,-1072.31,0.00019342,2]
[365424991,1749664245943,-1238.008863,0.00019342,2]
[365424992,1749664245953,-490.0,0.00019342,2]
[365424993,1749664245964,-490.0,0.00019342,2]
[365424994,1749664245974,-490.0,0.00019342,2]
[365424995,1749664245984,-490.0,0.00019342,2]
[365424996,1749664246246,-490.0,0.00019342,2]
[365424997,1749664246263,-591.66,0.00019342,2]
[365424998,1749664246274,-2882.68,0.00019342,2]
[365424999,1749664246284,-490.0,0.00019342,2]
[365425000,1749664246293,-490.0,0.00019342,2]
[365425001,1749664246303,-1592.46,0.00019342,2]
[365425002,1749664246313,-490.0,0.00019342,2]
[365425003,1749664246322,-772.88,0.00019342,2]
[365425004,1749664246332,-168.92,0.00019342,2]
[365425005,1749664246342,-490.0,0.00019342,2]
[365425006,1749664246351,-490.0,0.00019342,2]
[365425007,1749664246361,-628.18,0.00019342,2]
[365425008,1749664246371,-1396.99,0.00019342,2]
[365425009,1749664246382,-1056.26,0.00019342,2]
[365425010,1749664246391,-824.41,0.00019342,2]
[365425011,1749664246401,-851.75,0.00019342,2]
[365425012,1749664246410,-490.0,0.00019342,2]
[365425013,1749664246419,-1036.29,0.00019342,2]
[365425014,1749664246429,-490.0,0.00019342,2]
[365425015,1749664246439,-621.51,0.00019342,2]
[365425016,1749664246448,-982.57,0.00019342,2]
[365425017,1749664246457,-490.0,0.00019342,2]
[365425018,1749664246467,-490.0,0.00019342,2]
[365425019,1749664246476,-490.0,0.00019342,2]
[365425020,1749664246486,-490.0,0.00019342,2]
[365425021,1749664246497,-1715.86,0.00019342,2]